bitfinex/quotes_SOLUSD_20250712
["timestamp","ask_amount","ask_price","bid_price","bid_amount"]
[1752323608178,0.03,160.87,160.86,40.36628213]
[1752323608578,0.03,160.87,160.86,33.24]
[1752323609271,0.03,160.87,160.86,33.89]
[1752323609675,0.03,160.87,160.86,40.36628213]
[1752323612584,0.03,160.87,160.86,57.1509661]
[1752323614201,0.03,160.87,160.86,57.0509661]
[1752323614503,0.03,160.88,160.86,50.57468397]
[1752323614683,0.03,160.88,160.87,7.12628213]
[1752323615395,0.03,160.88,160.87,23.9109661]
[1752323617294,0.03,160.88,160.87,7.12628213]
[1752323617499,0.03,160.88,160.87,40.20628213]
[1752323618801,0.03,160.88,160.87,37.61502207]
[1752323619003,0.03,160.88,160.87,54.39970604]
[1752323619504,0.03,160.88,160.85,4.53502207]
[1752323619809,0.03,160.88,160.86,33.14]
[1752323620396,0.03,160.88,160.86,37.67502207]
[1752323621809,0.03,160.88,160.87,0.65]
[1752323622100,0.03,160.88,160.87,4.53502207]
[1752323625303,0.1,160.9,160.87,4.53502207]
[1752323625607,0.1,160.9,160.89,3.88502207]
[1752323625808,0.1,160.9,160.89,36.96502207]
[1752323626008,0.1,160.9,160.89,37.66502207]
[1752323626796,0.1,160.9,160.89,33.08]
[1752323628210,4.68502207,160.9,160.89,33.08]
[1752323628626,4.68502207,160.9,160.88,33.04]
[1752323628812,3.88502207,160.89,160.88,33.04]
[1752323629110,4.58502207,160.89,160.88,33.04]
[1752323630116,0.7,160.89,160.88,33.04]
[1752323630320,4.58502207,160.89,160.88,33.04]
[1752323630907,3.88502207,160.89,160.88,33.04]
[1752323631207,0.1,160.9,160.88,33.04]
[1752323631411,3.88502207,160.89,160.88,33.04]
[1752323632993,4.58502207,160.89,160.83,0.06]
[1752323633192,3.88502207,160.85,160.83,0.06]
[1752323633403,11.17662207,160.88,160.84,33.0]
[1752323633714,11.17662207,160.88,160.83,0.06]
[1752323633715,0.7,160.87,160.83,0.06]
[1752323634403,8.2093,160.86,160.83,0.06]
[1752323634603,3.88502207,160.84,160.83,0.06]
[1752323635112,4.58502207,160.84,160.83,0.06]
[1752323637441,3.88502207,160.85,160.83,0.06]
[1752323637632,4.58502207,160.84,160.83,0.06]
[1752323637833,4.58502207,160.85,160.83,0.06]
[1752323638048,3.88502207,160.84,160.83,0.06]
[1752323638217,4.58502207,160.84,160.83,0.06]
[1752323639243,3.88502207,160.85,160.83,0.06]
[1752323641037,3.88502207,160.84,160.83,0.06]
[1752323641232,4.58502207,160.84,160.83,0.06]
[1752323641415,3.88502207,160.84,160.83,0.06]
[1752323641614,4.58502207,160.84,160.7,6.83026812]
[1752323641849,3.88502207,160.75,160.7,4.58502207]
[1752323642057,3.88502207,160.75,160.71,33.7]
[1752323642222,3.88502207,160.75,160.71,33.0]
[1752323642560,3.88502207,160.75,160.72,0.7]
[1752323642914,3.88502207,160.73,160.71,33.0]
[1752323643130,0.7,160.74,160.71,33.0]
[1752323643344,3.88502207,160.73,160.71,33.0]
[1752323643535,4.58502207,160.73,160.71,33.0]
[1752323643718,4.58502207,160.72,160.66,0.06]
[1752323643919,3.88502207,160.7,160.67,33.14]
[1752323644118,3.88502207,160.71,160.68,0.7]
[1752323644324,3.88502207,160.69,160.67,33.14]
[1752323644523,0.7,160.7,160.67,33.14]
[1752323644722,3.88502207,160.7,160.67,33.84]
[1752323644933,6.5291,160.72,160.68,0.7]
[1752323645152,6.5291,160.72,160.67,33.14]
[1752323645153,6.49431018,160.7,160.67,33.14]
[1752323645455,6.49431018,160.69,160.67,33.14]
[1752323645654,0.7,160.68,160.66,0.06]
[1752323645854,6.49431018,160.67,160.66,0.06]
[1752323646853,7.19431018,160.67,160.66,0.06]
[1752323647349,1.5172,160.69,160.66,0.06]
[1752323647524,5.07960741,160.85,160.68,26.0]
[1752323647525,6.5291,160.76,160.68,26.0]
[1752323647724,6.49431018,160.75,160.7,6.49431018]
[1752323647925,6.49431018,160.72,160.68,34.14]
[1752323648140,0.7,160.71,160.68,40.63431018]
[1752323648349,0.7,160.73,160.68,34.14]
[1752323648663,6.49431018,160.75,160.7,6.49431018]
[1752323648947,13.72341018,160.76,160.71,7.19431018]
[1752323649157,7.2291,160.76,160.72,40.63431018]
[1752323649445,7.2291,160.76,160.72,41.33431018]
[1752323649840,0.7,160.75,160.72,34.14]
[1752323650144,6.49431018,160.73,160.72,34.14]
[1752323650355,0.7,160.74,160.72,34.14]
[1752323650526,7.19431018,160.74,160.72,34.14]
[1752323651746,7.19431018,160.73,160.72,34.14]
[1752323652238,7.19431018,160.73,160.66,0.06]
[1752323652451,0.7,160.72,160.67,34.28]
[1752323652749,7.19431018,160.72,160.67,40.77431018]
[1752323652953,7.19431018,160.72,160.67,41.47431018]
[1752323653257,0.7,160.71,160.67,34.28]
[1752323653555,0.7,160.7,160.67,34.28]
[1752323653731,6.49431018,160.69,160.67,34.28]
[1752323653923,7.19431018,160.7,160.67,34.28]
[1752323654357,6.49431018,160.69,160.67,34.28]
[1752323654650,0.67,160.71,160.67,34.28]
[1752323654949,6.49431018,160.71,160.67,35.0]
[1752323655148,6.49431018,160.72,160.68,0.72]
[1752323655449,6.49431018,160.7,160.67,34.28]
[1752323655645,7.16431018,160.7,160.67,34.28]
[1752323655840,0.67,160.7,160.67,34.28]
[1752323656375,7.16431018,160.7,160.67,34.28]
[1752323657853,0.67,160.72,160.67,34.28]
[1752323658152,7.16431018,160.72,160.68,0.72]
[1752323658556,6.49431018,160.69,160.67,34.28]
[1752323658764,7.16431018,160.69,160.67,34.28]
[1752323659276,7.16431018,160.68,160.67,34.28]
[1752323659561,6.3818,160.69,160.67,34.28]
[1752323659768,6.49431018,160.68,160.67,34.28]
[1752323660469,0.67,160.72,160.67,35.0]
[1752323660632,6.49431018,160.72,160.68,0.72]
[1752323660974,6.49431018,160.72,160.67,40.77431018]
[1752323660975,6.49431018,160.73,160.69,7.21431018]
[1752323661274,13.54611018,160.74,160.7,34.42]
[1752323661564,6.49431018,160.73,160.7,34.42]
[1752323662760,12.87611018,160.74,160.7,34.42]
[1752323662959,6.49431018,160.75,160.71,0.72]
[1752323663650,7.16431018,160.75,160.71,0.72]
[1752323663885,6.49431018,160.74,160.7,34.42]
[1752323664060,6.49431018,160.74,160.7,35.14]
[1752323664540,0.67,160.75,160.7,35.14]
[1752323664541,6.3818,160.78,160.7,35.14]
[1752323664744,6.49431018,160.73,160.7,34.42]
[1752323665540,7.16431018,160.73,160.7,34.42]
[1752323666550,6.49431018,160.72,160.7,34.42]
[1752323668451,6.49431018,160.71,160.7,34.42]
[1752323669363,6.49431018,160.71,160.68,0.72]
[1752323669546,6.49431018,160.71,160.69,34.22]
[1752323669944,6.49431018,160.7,160.66,0.78]
[1752323670144,6.49431018,160.68,160.67,34.18]
[1752323671060,7.16431018,160.68,160.67,34.18]
[1752323671456,6.49431018,160.68,160.67,34.18]
[1752323674551,0.67,160.7,160.67,34.18]
[1752323674751,6.49431018,160.68,160.67,34.18]
[1752323675356,0.67,160.69,160.67,34.18]
[1752323675560,6.49431018,160.68,160.67,34.18]
[1752323676164,0.67,160.69,160.67,34.18]
[1752323676380,6.49431018,160.68,160.67,34.18]
[1752323676552,7.16431018,160.68,160.67,34.18]
[1752323676952,4.56845183,160.68,160.67,34.18]
[1752323677257,4.56845183,160.68,160.66,0.06]
[1752323677463,4.56845183,160.67,160.66,0.06]
[1752323678066,0.67,160.67,160.66,0.06]
[1752323678268,4.56845183,160.67,160.66,0.06]
[1752323678862,0.67,160.67,160.66,0.06]
[1752323679063,7.16804464,160.67,160.66,0.06]
[1752323680572,25.59102861,160.67,160.66,0.06]
[1752323681084,51.59102861,160.67,160.66,0.06]
[1752323681254,16.78468397,160.66,160.62,0.2]
[1752323681461,6.49804464,160.63,160.62,0.2]
[1752323681766,16.78468397,160.64,160.62,0.2]
[1752323682075,146.17,160.65,160.62,0.2]
[1752323682254,0.67,160.63,160.62,0.2]
[1752323682460,7.16804464,160.63,160.62,0.2]
[1752323683879,23.95272861,160.63,160.62,0.2]
[1752323684277,30.44312861,160.63,160.62,0.2]
[1752323686868,13.65844464,160.63,160.62,0.2]
[1752323688286,12.98844464,160.63,160.62,0.2]
[1752323688591,30.47312861,160.63,160.62,0.2]
[1752323689062,31.28557325,160.62,160.58,0.06]
[1752323689268,49.28272861,160.59,160.58,0.06]
[1752323689688,49.98272861,160.59,160.58,0.06]
[1752323694379,56.35562861,160.59,160.58,0.06]
[1752323694567,30.35562861,160.59,160.58,0.06]
[1752323695182,16.78468397,160.58,160.51,0.69]
[1752323695386,6.49804464,160.52,160.51,0.69]
[1752323695892,6.49804464,160.52,160.5,33.8]
[1752323696075,6.49804464,160.51,160.5,33.8]
[1752323696997,38.07247325,160.51,160.5,0.06]
[1752323697185,16.78468397,160.5,160.49,0.2]
[1752323697491,30.48077325,160.5,160.49,0.2]
[1752323698171,17.48468397,160.5,160.49,0.2]
[1752323698375,30.48077325,160.5,160.49,0.2]
[1752323700071,17.48468397,160.5,160.49,0.2]
[1752323700478,30.48077325,160.5,160.49,0.2]
[1752323701007,26.0,160.47,160.37,0.69]
[1752323701289,41.2317,160.51,160.38,0.69]
[1752323701290,16.78468397,160.45,160.38,0.69]
[1752323701492,26.0,160.46,160.38,0.69]
[1752323701493,3.90815446,160.41,160.38,26.69]
[1752323701807,42.78468397,160.47,160.39,0.69]
[1752323702091,4.60815446,160.48,160.39,4.59815446]
[1752323702296,3.90815446,160.46,160.41,3.90815446]
[1752323702470,7.5917,160.51,160.42,34.81]
[1752323702671,3.90815446,160.49,160.44,3.90815446]
[1752323702873,0.7,160.54,160.45,4.59815446]
[1752323703071,3.90815446,160.5,160.46,0.69]
[1752323703704,3.90815446,160.5,160.46,4.59815446]
[1752323703904,0.7,160.53,160.47,0.69]
[1752323704200,3.90815446,160.49,160.47,0.69]
[1752323704573,16.78468397,160.53,160.44,0.69]
[1752323704891,3.90815446,160.45,160.42,34.81]
[1752323705090,3.90815446,160.43,160.42,34.12]
[1752323705307,0.7,160.43,160.38,0.69]
[1752323705605,0.7,160.45,160.39,0.69]
[1752323705915,0.7,160.45,160.37,34.24]
[1752323706088,3.90815446,160.4,160.37,34.93]
[1752323706288,3.90815446,160.4,160.38,0.69]
[1752323706699,27.5121,160.46,160.38,0.69]
[1752323706700,3.90815446,160.39,160.38,0.69]
[1752323706892,6.5197853,160.39,160.37,34.24]
[1752323707406,6.5197853,160.39,160.37,34.93]
[1752323707786,6.5197853,160.38,160.34,1.0]
[1752323707990,6.5197853,160.37,160.35,0.69]
[1752323708293,28.29678397,160.46,160.35,0.69]
[1752323708294,6.5197853,160.38,160.35,0.69]
[1752323708501,6.5197853,160.38,160.36,0.69]
[1752323709309,6.5197853,160.37,160.36,0.69]
[1752323709517,0.7,160.41,160.36,0.69]
[1752323709690,6.5197853,160.37,160.36,0.69]
[1752323710307,6.5197853,160.37,160.35,0.69]
[1752323710497,6.5197853,160.37,160.34,35.3]
[1752323710498,6.5197853,160.36,160.34,35.3]
[1752323710693,6.5197853,160.36,160.34,35.99]
[1752323711424,6.5197853,160.37,160.34,35.99]
[1752323711707,6.5197853,160.36,160.34,35.99]
[1752323711907,6.5197853,160.38,160.35,0.69]
[1752323712108,17.48468397,160.43,160.35,0.69]
[1752323712287,6.5197853,160.39,160.35,0.69]
[1752323712615,17.48468397,160.43,160.35,0.69]
[1752323712812,0.7,160.45,160.35,0.69]
[1752323713111,6.5197853,160.42,160.35,0.69]
[1752323713309,6.5197853,160.42,160.36,0.06]
[1752323713518,6.5197853,160.42,160.37,7.2097853]
[1752323713719,6.5197853,160.4,160.38,0.69]
[1752323713892,0.7,160.44,160.39,34.28]
[1752323714094,6.5197853,160.4,160.39,34.28]
[1752323714303,6.5197853,160.4,160.36,0.74]
[1752323714510,6.5197853,160.42,160.37,7.1997853]
[1752323714695,6.5197853,160.42,160.38,0.68]
[1752323714900,26.66,160.45,160.39,0.68]
[1752323715092,6.5197853,160.43,160.39,0.68]
[1752323715290,6.5197853,160.43,160.4,34.94]
[1752323715591,6.5197853,160.42,160.4,34.94]
[1752323716018,6.5197853,160.44,160.41,0.68]
[1752323716588,6.5197853,160.44,160.4,34.26]
[1752323716589,145.5,160.46,160.42,0.68]
[1752323716913,6.5197853,160.43,160.36,0.06]
[1752323717221,0.66,160.45,160.38,0.68]
[1752323717222,6.5197853,160.41,160.38,0.68]
[1752323717898,6.5197853,160.39,160.37,34.3]
[1752323718091,6.5197853,160.4,160.38,0.68]
[1752323718307,6.5197853,160.41,160.39,0.68]
[1752323718513,6.5197853,160.4,160.37,34.98]
[1752323718719,6.5197853,160.38,160.37,34.3]
[1752323721839,1.5521,160.43,160.37,34.98]
[1752323722002,2.2121,160.43,160.38,0.68]
[1752323722302,145.5,160.44,160.39,0.68]
[1752323722507,6.5197853,160.43,160.38,6.5197853]
[1752323722812,145.5,160.44,160.38,0.68]
[1752323722813,6.5197853,160.4,160.38,0.68]
[1752323723315,6.5197853,160.39,160.37,34.3]
[1752323723936,6.5197853,160.39,160.37,34.98]
[1752323724423,6.5197853,160.4,160.38,0.68]
[1752323724636,26.66,160.44,160.38,0.68]
[1752323724800,6.5197853,160.41,160.39,0.68]
[1752323726110,6.5197853,160.42,160.4,0.68]
[1752323726903,7.1797853,160.41,160.36,0.74]
[1752323727208,6.5197853,160.39,160.37,34.94]
[1752323727929,7.1797853,160.38,160.36,0.06]
[1752323728232,6.5197853,160.37,160.36,0.06]
[1752323728539,7.1797853,160.37,160.36,0.06]
[1752323728904,30.57483617,160.37,160.36,0.06]
[1752323730912,33.18459858,160.37,160.36,0.06]
[1752323731461,26.0,160.36,160.34,1.0]
[1752323731634,6.52459858,160.35,160.34,1.0]
[1752323732518,7.18459858,160.35,160.34,1.0]
[1752323733326,23.96928255,160.35,160.34,1.0]
[1752323733523,7.18459858,160.35,160.34,1.0]
[1752323733931,6.52459858,160.35,160.34,1.0]
[1752323734236,7.18459858,160.35,160.34,1.0]
[1752323735427,6.52459858,160.35,160.34,1.0]
[1752323736523,7.18459858,160.35,160.34,1.0]
[1752323736722,6.52459858,160.35,160.34,1.0]
[1752323737509,0.66,160.37,160.34,1.0]
[1752323737712,6.52459858,160.35,160.34,1.0]
[1752323737912,17.44468397,160.38,160.34,1.0]
[1752323738107,6.52459858,160.35,160.34,1.0]
[1752323740116,7.18459858,160.35,160.34,1.0]
[1752323741528,6.52459858,160.35,160.34,1.0]
[1752323742441,7.18459858,160.35,160.34,1.0]
[1752323744117,0.66,160.35,160.34,1.0]
[1752323744417,7.18459858,160.35,160.34,1.0]
[1752323744620,0.66,160.35,160.34,1.0]
[1752323744840,7.18459858,160.35,160.34,1.0]
[1752323747142,145.5,160.39,160.34,1.72]
[1752323747459,6.0156,160.4,160.35,6.52459858]
[1752323747460,6.52459858,160.4,160.35,6.52459858]
[1752323747630,0.7,160.43,160.36,0.72]
[1752323747826,153.0917,160.44,160.37,6.52459858]
[1752323748024,6.52459858,160.42,160.38,0.72]
[1752323748222,6.52459858,160.43,160.38,7.24459858]
[1752323748525,6.52459858,160.43,160.39,0.72]
[1752323748740,152.02459858,160.44,160.39,7.24459858]
[1752323748923,152.02459858,160.44,160.4,0.72]
[1752323749119,145.5,160.44,160.41,6.52459858]
[1752323749429,145.5,160.44,160.42,0.72]
[1752323750348,145.5,160.44,160.43,0.72]
[1752323751258,152.02459858,160.44,160.4,0.72]
[1752323751421,152.02459858,160.44,160.41,0.72]
[1752323751621,145.5,160.44,160.42,0.72]
[1752323752040,145.5,160.44,160.37,26.0]
[1752323752343,6.52459858,160.42,160.38,0.72]
[1752323752548,145.5,160.44,160.38,0.72]
[1752323752549,6.52459858,160.41,160.38,0.72]
[1752323753437,6.52459858,160.4,160.38,0.72]
[1752323753640,6.52459858,160.4,160.34,35.08]
[1752323753839,6.52459858,160.4,160.36,0.72]
[1752323754145,6.52459858,160.4,160.37,0.72]
[1752323754543,6.52459858,160.4,160.35,6.52459858]
[1752323754724,145.5,160.44,160.38,0.72]
[1752323754725,6.52459858,160.41,160.38,0.72]
[1752323755744,6.52459858,160.4,160.38,0.72]
[1752323756142,6.52459858,160.39,160.35,0.72]
[1752323756445,6.52459858,160.39,160.36,0.72]
[1752323756637,6.52459858,160.39,160.37,0.72]
[1752323756840,0.7,160.42,160.37,0.72]
[1752323757039,6.52459858,160.39,160.37,0.72]
[1752323757547,6.52459858,160.39,160.35,0.72]
[1752323757727,6.52459858,160.38,160.35,0.72]
[1752323758045,6.52459858,160.38,160.36,0.72]
[1752323758625,6.52459858,160.38,160.34,35.14]
[1752323758826,3.9128953,160.37,160.34,35.86]
[1752323759026,3.9128953,160.37,160.35,0.72]
[1752323761066,3.9128953,160.37,160.34,35.14]
[1752323761529,3.9128953,160.37,160.34,35.86]
[1752323762144,0.7,160.39,160.35,0.72]
[1752323762345,3.9128953,160.39,160.36,0.72]
[1752323762933,3.9428953,160.4,160.37,0.72]
[1752323763441,3.9128953,160.39,160.35,0.72]
[1752323763637,3.9128953,160.39,160.36,0.72]
[1752323763841,0.03,160.4,160.36,0.72]
[1752323764146,3.9128953,160.39,160.36,0.72]
[1752323765656,3.9128953,160.38,160.36,0.72]
[1752323765857,0.73,160.4,160.34,35.86]
[1752323766155,3.9128953,160.38,160.34,35.86]
[1752323766361,3.9128953,160.38,160.35,0.72]
[1752323767369,3.9128953,160.37,160.35,0.72]
[1752323767543,3.9128953,160.36,160.34,35.14]
[1752323767750,3.9128953,160.35,160.34,35.14]
[1752323768053,3.9128953,160.35,160.34,1.06]
[1752323771344,3.9128953,160.35,160.34,1.78]
[1752323771544,3.9128953,160.35,160.34,1.06]
[1752323772458,4.6128953,160.35,160.34,1.06]
[1752323774073,55.67017927,160.35,160.34,1.06]
[1752323775753,51.75728397,160.35,160.34,1.06]
[1752323775961,3.9128953,160.35,160.34,1.06]
[1752323776164,3.9128953,160.36,160.34,1.73]
[1752323776341,145.5,160.37,160.35,0.67]
[1752323776680,145.5,160.37,160.36,0.67]
[1752323776969,3.9128953,160.38,160.36,0.67]
[1752323777664,3.9128953,160.37,160.34,1.06]
[1752323777867,3.9128953,160.36,160.34,1.73]
[1752323778364,4.6328953,160.35,160.34,1.06]
[1752323778665,3.9128953,160.35,160.34,1.06]
[1752323780067,4.6328953,160.35,160.34,1.06]
[1752323780867,7.24459379,160.35,160.34,1.06]
[1752323783555,0.72,160.35,160.34,1.06]
[1752323783761,24.02927776,160.35,160.34,1.06]
[1752323784477,32.52459379,160.35,160.34,1.06]
[1752323784655,145.53,160.37,160.34,1.73]
[1752323785048,145.53,160.37,160.35,0.67]
[1752323785251,145.53,160.37,160.34,34.56]
[1752323785445,145.53,160.37,160.36,0.67]
[1752323787552,152.05459379,160.37,160.34,35.23]
[1752323788351,6.52459379,160.36,160.34,34.56]
[1752323788547,6.52459379,160.35,160.34,34.56]
[1752323788946,145.53,160.37,160.34,1.73]
[1752323789169,145.53,160.37,160.35,0.67]
[1752323789364,145.53,160.37,160.36,0.67]
[1752323790769,0.03,160.37,160.36,0.67]
[1752323792161,0.03,160.37,160.36,34.11]
[1752323792474,0.03,160.37,160.36,40.63459379]
[1752323793673,0.03,160.37,160.36,34.11]
[1752323793873,0.03,160.37,160.36,40.63459379]
[1752323794672,0.03,160.37,160.36,57.41927776]
[1752323796178,0.03,160.4,160.36,34.11]
[1752323796370,6.55459379,160.4,160.37,0.67]
[1752323796577,6.55459379,160.4,160.38,0.67]
[1752323796878,0.03,160.4,160.39,0.67]
[1752323797074,0.03,160.4,160.39,40.79459379]
[1752323798664,0.03,160.4,160.39,34.27]
[1752323798867,0.03,160.4,160.39,0.67]
[1752323799065,0.03,160.4,160.39,34.25]
[1752323799683,0.03,160.4,160.39,40.77459379]
[1752323800292,0.03,160.4,160.37,0.67]
[1752323800592,0.03,160.4,160.38,33.56]
[1752323800766,4.66175047,160.4,160.38,33.56]
[1752323800969,3.94175047,160.4,160.38,33.56]
[1752323801387,3.91175047,160.39,160.38,33.56]
[1752323801689,4.63175047,160.39,160.36,0.06]
[1752323801867,3.91175047,160.37,160.36,0.06]
[1752323802994,7.24249555,160.37,160.36,0.06]
[1752323803869,13.57699555,160.37,160.36,0.06]
[1752323808970,7.0545,160.37,160.36,0.06]
[1752323809171,13.57699555,160.37,160.36,0.06]
[1752323809372,12.85699555,160.37,160.36,0.06]
[1752323810393,26.03,160.4,160.36,0.78]
[1752323810583,6.52249555,160.38,160.36,0.78]
[1752323810783,6.52249555,160.38,160.37,0.72]
[1752323812172,6.52249555,160.39,160.37,0.72]
[1752323812571,6.55249555,160.4,160.36,40.04249555]
[1752323812888,6.55249555,160.4,160.38,0.72]
[1752323813278,6.55249555,160.4,160.39,0.72]
[1752323814398,0.03,160.4,160.39,0.72]
[1752323817502,6.55249555,160.4,160.37,0.72]
[1752323817790,6.52249555,160.39,160.36,33.48]
[1752323817998,6.52249555,160.39,160.36,34.2]
[1752323819103,6.52249555,160.38,160.36,34.2]
[1752323819479,6.52249555,160.37,160.36,33.48]
[1752323819784,6.52249555,160.39,160.36,34.2]
[1752323819992,6.52249555,160.39,160.37,0.72]
[1752323820586,6.55249555,160.4,160.37,0.72]
[1752323821386,6.52249555,160.39,160.36,33.48]
[1752323821585,0.69,160.4,160.36,33.48]
[1752323821795,6.52249555,160.39,160.36,34.2]
[1752323821991,6.52249555,160.39,160.37,0.72]
[1752323822200,0.03,160.4,160.38,0.72]
[1752323822379,6.55249555,160.4,160.38,0.72]
[1752323822779,6.52249555,160.39,160.36,34.2]
[1752323822994,6.52249555,160.38,160.36,33.48]
[1752323823301,6.52249555,160.38,160.36,34.2]
[1752323823802,6.52249555,160.38,160.36,33.48]
[1752323824006,6.52249555,160.37,160.36,33.48]
[1752323824301,6.52249555,160.37,160.36,0.06]
[1752323824804,3.91283711,160.37,160.36,0.06]
[1752323824991,3.94283711,160.39,160.36,0.78]
[1752323825315,0.03,160.39,160.37,0.72]
[1752323825615,0.03,160.39,160.38,0.72]
[1752323828294,3.94283711,160.39,160.36,0.06]
[1752323828492,3.94283711,160.39,160.36,0.78]
[1752323828690,3.91283711,160.38,160.36,0.06]
[1752323828988,3.91283711,160.37,160.36,0.06]
[1752323829691,4.57283711,160.37,160.36,0.06]
[1752323830002,36.84533711,160.37,160.36,0.06]
[1752323830712,53.63002108,160.37,160.36,0.06]
[1752323830888,55.28482108,160.37,160.36,0.06]
[1752323831994,16.78468397,160.36,160.34,1.0]
[1752323832190,20.69752108,160.35,160.34,1.0]
[1752323832390,21.35752108,160.35,160.34,1.0]
[1752323833904,30.57283711,160.35,160.34,1.0]
[1752323834102,29.91283711,160.35,160.34,1.0]
[1752323834403,30.61283711,160.35,160.34,1.0]
[1752323834723,26.0,160.35,160.34,1.0]
[1752323835014,3.91283711,160.35,160.34,1.72]
[1752323835213,3.91283711,160.35,160.34,1.0]
[1752323836906,149.41283711,160.35,160.34,1.0]
[1752323838714,145.5,160.35,160.34,1.0]
[1752323838912,149.41283711,160.35,160.34,1.0]
[1752323840922,145.5,160.35,160.34,1.72]
[1752323841800,149.41283711,160.35,160.34,1.0]
[1752323842002,146.2,160.35,160.34,1.0]
[1752323842302,150.11283711,160.35,160.34,1.0]
[1752323843294,157.98133711,160.35,160.34,1.0]
[1752323843700,174.76602108,160.35,160.34,1.0]
[1752323845025,26.0,160.32,160.27,9.78855276]
[1752323845222,3.91283711,160.28,160.27,9.78855276]
[1752323845531,146.2,160.31,160.27,9.06855276]
[1752323846120,3.91283711,160.28,160.27,9.78855276]
[1752323847106,3.91283711,160.28,160.27,9.06855276]
[1752323847909,0.7,160.29,160.27,9.06855276]
[1752323848106,0.7,160.3,160.27,9.06855276]
[1752323848607,3.91283711,160.28,160.27,9.06855276]
[1752323849057,21.35039292,160.28,160.21,26.0]
[1752323849331,21.35039292,160.28,160.13,16.78468397]
[1752323849332,3.91283711,160.22,160.13,16.78468397]
[1752323849509,29.91283711,160.24,160.14,0.72]
[1752323849510,3.91283711,160.18,160.14,0.72]
[1752323849710,0.6,160.21,160.15,0.72]
[1752323849711,3.91283711,160.17,160.15,0.72]
[1752323850032,3.91283711,160.17,160.12,37.89283711]
[1752323850328,3.91283711,160.15,160.13,0.72]
[1752323850547,26.0,160.2,160.13,0.72]
[1752323850745,0.6,160.21,160.13,0.72]
[1752323850929,6.53882681,160.16,160.13,0.72]
[1752323851113,6.53882681,160.15,160.14,0.72]
[1752323851317,26.0,160.24,160.14,75.41882681]
[1752323851545,16.78468397,160.23,160.15,0.72]
[1752323851756,6.53882681,160.2,160.15,7.25882681]
[1752323852055,16.78468397,160.24,160.14,69.7747]
[1752323852056,6.53882681,160.19,160.16,0.72]
[1752323852445,6.53882681,160.18,160.17,0.72]
[1752323852646,16.78468397,160.26,160.14,69.7747]
[1752323852647,7.13882681,160.2,160.14,68.16]
[1752323852827,0.6,160.2,160.14,68.88]
[1752323853027,6.53882681,160.17,160.15,0.72]
[1752323853227,0.6,160.22,160.15,0.72]
[1752323853450,51.9384,160.27,160.15,0.72]
[1752323853451,26.0,160.23,160.15,0.72]
[1752323853659,6.53882681,160.21,160.16,6.53882681]
[1752323853857,6.53882681,160.21,160.17,0.72]
[1752323854046,0.6,160.25,160.18,0.72]
[1752323854232,6.53882681,160.21,160.19,68.34]
[1752323854429,26.0,160.23,160.19,69.06]
[1752323854633,26.0,160.23,160.19,68.34]
[1752323854634,6.53882681,160.2,160.19,68.34]
[1752323855233,7.13882681,160.2,160.19,68.34]
[1752323855634,0.6,160.2,160.19,68.34]
[1752323855830,3.246,160.19,160.15,0.72]